bitfinex/quotes_BTCUSD_20240721
["timestamp","ask_amount","ask_price","bid_price","bid_amount"]
[1721576747431,2.30057981,67302.0,67301.0,0.00109]
[1721576747945,2.31457981,67302.0,67301.0,0.00109]
[1721576748224,1.24641,67294.0,67291.0,0.002]
[1721576748456,2.80179074,67294.0,67291.0,0.002]
[1721576748900,2.80179074,67294.0,67293.0,0.00318298]
[1721576749404,2.99639074,67294.0,67293.0,0.00318298]
[1721576749631,3.04639074,67294.0,67293.0,0.00318298]
[1721576749866,3.15074031,67294.0,67293.0,0.00318298]
[1721576750082,3.02014031,67294.0,67293.0,0.00318298]
[1721576750374,3.36734331,67294.0,67293.0,0.00318298]
[1721576750603,3.35334331,67294.0,67293.0,0.00318298]
[1721576751066,3.16299374,67294.0,67293.0,0.00318298]
[1721576751289,3.21299374,67294.0,67293.0,0.00318298]
[1721576751509,3.22699374,67294.0,67293.0,0.00318298]
[1721576752711,3.29043674,67294.0,67293.0,0.00318298]
[1721576752934,3.24043674,67294.0,67293.0,0.00318298]
[1721576753162,3.32621409,67294.0,67293.0,0.00318298]
[1721576753403,0.095,67292.0,67291.0,0.002]
[1721576753625,2.45147774,67292.0,67291.0,0.002]
[1721576753851,2.55147774,67292.0,67291.0,0.002]
[1721576754078,2.50147774,67292.0,67291.0,0.002]
[1721576754591,2.25447774,67292.0,67291.0,0.002]
[1721576756000,2.26847774,67292.0,67291.0,0.002]
[1721576756244,2.23247774,67292.0,67291.0,0.002]
[1721576756493,2.24647774,67292.0,67291.0,0.002]
[1721576756711,2.35882731,67292.0,67291.0,0.002]
[1721576756959,2.40882731,67292.0,67291.0,0.002]
[1721576757209,2.42282731,67292.0,67291.0,0.002]
[1721576757439,2.37282731,67292.0,67291.0,0.002]
[1721576757937,2.42282731,67292.0,67291.0,0.002]
[1721576758163,2.43682731,67292.0,67291.0,0.002]
[1721576758402,2.40882731,67292.0,67291.0,0.002]
[1721576758886,2.42282731,67292.0,67291.0,0.002]
[1721576759117,2.43682731,67292.0,67291.0,0.002]
[1721576759358,2.45082731,67292.0,67291.0,0.002]
[1721576759818,2.43682731,67292.0,67291.0,0.002]
[1721576760054,2.45082731,67292.0,67291.0,0.002]
[1721576760309,2.45082731,67292.0,67288.0,0.16978602]
[1721576760310,1.085287,67289.0,67288.0,0.16978602]
[1721576760549,1.085287,67289.0,67288.0,0.25028602]
[1721576760550,1.54078874,67289.0,67288.0,0.25028602]
[1721576760804,0.99744374,67289.0,67288.0,0.25028602]
[1721576761040,0.99744374,67289.0,67288.0,0.31368602]
[1721576761041,1.49401831,67289.0,67288.0,0.31368602]
[1721576761272,2.23593781,67289.0,67288.0,0.16978602]
[1721576761764,2.92160481,67289.0,67288.0,0.16978602]
[1721576762023,2.97160481,67289.0,67288.0,0.16978602]
[1721576762280,2.68837981,67289.0,67288.0,0.16978602]
[1721576762996,2.45688824,67289.0,67288.0,0.16978602]
[1721576763677,2.44288824,67289.0,67288.0,0.16978602]
[1721576764523,2.52003024,67289.0,67288.0,0.16978602]
[1721576764941,2.53403024,67289.0,67288.0,0.16978602]
[1721576766004,2.48403024,67289.0,67288.0,0.16978602]
[1721576766222,2.63837981,67289.0,67288.0,0.16978602]
[1721576766433,2.68837981,67289.0,67288.0,0.16978602]
[1721576767907,1.69342324,67289.0,67288.0,0.23318602]
[1721576768117,1.33816324,67289.0,67288.0,0.43717211]
[1721576768329,0.33248824,67289.0,67288.0,0.43717211]
[1721576768542,0.62971324,67289.0,67288.0,0.43716215]
[1721576768743,0.94093824,67289.0,67288.0,0.43716215]
[1721576768956,1.23816324,67289.0,67288.0,0.43716215]
[1721576769165,1.22416324,67289.0,67288.0,0.43716215]
[1721576769363,1.33352384,67289.0,67288.0,0.43716215]
[1721576769591,1.34752384,67289.0,67288.0,0.43716215]
[1721576769799,1.36152384,67289.0,67288.0,0.43716215]
[1721576770004,1.46152384,67289.0,67288.0,0.43716215]
[1721576770215,1.44752384,67289.0,67288.0,0.43716215]
[1721576770434,1.46052384,67289.0,67288.0,0.43716215]
[1721576770848,1.32316324,67289.0,67288.0,0.43716215]
[1721576771289,1.33416324,67289.0,67288.0,0.43716215]
[1721576771497,1.32116324,67289.0,67288.0,0.43716621]
[1721576771765,1.31016324,67289.0,67288.0,0.43716621]
[1721576771960,1.32216324,67289.0,67288.0,0.43716621]
[1721576772177,1.48651281,67289.0,67288.0,0.43716636]
[1721576772383,2.15145781,67289.0,67288.0,0.43716636]
[1721576772836,2.13945781,67289.0,67288.0,0.43716636]
[1721576773046,2.15345781,67289.0,67288.0,0.43716636]
[1721576773250,2.14345781,67289.0,67288.0,0.43716636]
[1721576773459,1.39216324,67289.0,67288.0,0.43716636]
[1721576773672,0.74171324,67289.0,67288.0,0.43716636]
[1721576773882,0.19587624,67289.0,67288.0,0.43716636]
[1721576774116,0.19587624,67289.0,67288.0,0.76452902]
[1721576774314,0.026,67289.0,67288.0,0.77595974]
[1721576774525,0.04,67289.0,67288.0,0.62734574]
[1721576774761,0.0154945,67306.0,67296.0,0.1392]
[1721576774968,0.0154945,67306.0,67305.0,0.08217479]
[1721576775175,0.0154945,67306.0,67305.0,0.34482864]
[1721576775381,0.16987624,67306.0,67305.0,0.33482864]
[1721576775590,0.15438174,67306.0,67305.0,0.33482864]
[1721576775999,0.16338174,67306.0,67305.0,0.33482864]
[1721576776205,0.16738174,67306.0,67305.0,0.33482864]
[1721576776411,0.26738174,67306.0,67305.0,0.33482864]
[1721576776614,0.27238174,67306.0,67305.0,0.33482864]
[1721576777469,0.297068,67325.0,67311.0,0.148562]
[1721576777680,0.297068,67325.0,67305.0,0.19562864]
[1721576777681,0.148544,67320.0,67315.0,0.0771]
[1721576777878,0.07330889,67331.0,67315.0,0.0771]
[1721576777879,0.05,67332.0,67315.0,0.26261574]
[1721576778029,0.05,67332.0,67316.0,0.12341574]
[1721576778030,0.148545,67320.0,67316.0,0.12341574]
[1721576778230,0.297085,67321.0,67317.0,0.12341574]
[1721576778440,0.148548,67318.0,67314.0,0.07717479]
[1721576778623,0.15438174,67317.0,67315.0,0.12341287]
[1721576778828,0.30293274,67317.0,67316.0,0.26351287]
[1721576779032,0.89713474,67317.0,67316.0,0.25651287]
[1721576779223,0.89713474,67317.0,67316.0,0.1411]
[1721576779224,1.19423574,67317.0,67316.0,0.1411]
[1721576779628,1.29423574,67317.0,67316.0,0.1411]
[1721576780698,1.29423574,67317.0,67316.0,0.1401]
[1721576781130,1.28923574,67317.0,67316.0,0.1401]
[1721576781787,0.54648274,67317.0,67305.0,0.07717479]
[1721576782018,0.742875,67306.0,67304.0,0.4692]
[1721576782278,1.29442074,67305.0,67304.0,0.4692]
[1721576784256,1.29442074,67305.0,67297.0,0.7931]
[1721576784257,1.040147,67298.0,67297.0,0.0615]
[1721576784463,1.29452874,67298.0,67297.0,0.0615]
[1721576784906,1.29452874,67298.0,67294.0,0.07717479]
[1721576784907,1.040193,67295.0,67294.0,0.07717479]
[1721576785124,1.19457474,67295.0,67294.0,0.07717479]
[1721576785335,1.29457474,67295.0,67294.0,0.07717479]
[1721576785967,0.99737674,67295.0,67294.0,0.07717479]
[1721576786409,0.1,67295.0,67294.0,0.22577579]
[1721576786616,0.1,67295.0,67294.0,0.21827479]
[1721576787046,0.297166,67303.0,67294.0,0.21827479]
[1721576787047,0.148597,67297.0,67294.0,0.21827479]
[1721576787258,0.30297874,67297.0,67294.0,0.21827479]
[1721576787487,0.1,67296.0,67294.0,0.21827479]
[1721576787695,0.248597,67296.0,67294.0,0.21827479]
[1721576787904,0.007,67295.0,67294.0,0.21827479]
[1721576788327,0.007,67295.0,67294.0,0.21927479]
[1721576788584,0.1,67296.0,67294.0,0.21727479]
[1721576788808,0.101,67296.0,67294.0,0.21727479]
[1721576789890,0.101,67296.0,67294.0,0.15577479]
[1721576790121,0.1,67296.0,67295.0,0.1401]
[1721576791229,0.101,67296.0,67295.0,0.1401]
[1721576791688,0.1,67296.0,67295.0,0.1401]
[1721576792153,0.248597,67296.0,67295.0,0.1401]
[1721576792438,0.1,67296.0,67295.0,0.1401]
[1721576792886,0.095,67296.0,67295.0,0.1401]
[1721576793517,0.096,67296.0,67295.0,0.585897]
[1721576793782,0.001,67296.0,67295.0,0.585897]
[1721576794014,0.001,67296.0,67295.0,0.66307179]
[1721576795318,0.001,67296.0,67295.0,0.36587379]
[1721576795532,0.001,67296.0,67295.0,0.1401]
[1721576795746,0.001,67296.0,67295.0,0.288699]
[1721576795960,0.001,67296.0,67295.0,0.1401]
[1721576796591,0.149597,67296.0,67295.0,0.1401]
[1721576796809,0.001,67296.0,67295.0,0.1401]
[1721576799645,0.149597,67296.0,67295.0,0.1401]
[1721576799849,0.446791,67296.0,67295.0,0.1401]
[1721576800144,0.99836674,67296.0,67295.0,0.1401]
[1721576800362,0.99836674,67296.0,67288.0,0.16978602]
[1721576800363,0.445837,67289.0,67288.0,0.16978602]
[1721576800589,0.70021874,67289.0,67288.0,0.16978602]
[1721576800805,0.99744374,67289.0,67288.0,0.16978602]
[1721576801889,1.00344374,67289.0,67288.0,0.17078602]
[1721576802317,1.29466874,67289.0,67288.0,0.16978602]
[1721576802745,1.30166874,67289.0,67288.0,0.17171002]
[1721576803174,1.29466874,67289.0,67288.0,0.17071002]
[1721576804011,0.99744374,67289.0,67288.0,0.17071002]
[1721576804227,0.70221874,67289.0,67288.0,0.17171002]
[1721576804429,0.1,67289.0,67288.0,0.31611002]
[1721576804635,0.014,67289.0,67288.0,0.31711002]
[1721576805056,0.002,67289.0,67288.0,0.31711002]
[1721576805268,0.250612,67289.0,67288.0,0.31711002]
[1721576805503,0.011,67289.0,67288.0,0.31711002]
[1721576805726,0.111,67289.0,67288.0,0.31711002]
[1721576805935,0.111,67289.0,67288.0,0.31611002]
[1721576806147,0.261612,67289.0,67288.0,0.31711002]
[1721576806594,0.11,67289.0,67288.0,0.31811002]
[1721576806776,0.01,67289.0,67288.0,0.31811002]
[1721576807013,0.11,67289.0,67288.0,0.31811002]
[1721576807721,0.258612,67289.0,67288.0,0.31811002]
[1721576807938,0.258612,67289.0,67288.0,0.31711002]
[1721576807939,0.252612,67289.0,67288.0,0.31711002]
[1721576808159,1.29866874,67289.0,67288.0,0.31811002]
[1721576808373,1.29466874,67289.0,67288.0,0.31711002]
[1721576808580,1.31016324,67289.0,67288.0,0.17071002]
[1721576808792,1.31516324,67289.0,67288.0,0.17071002]
[1721576809008,1.31516324,67289.0,67288.0,0.17171002]
[1721576809638,1.31016324,67289.0,67288.0,0.17171002]
[1721576809844,1.31016324,67289.0,67288.0,0.17071002]
[1721576810056,1.01693824,67289.0,67288.0,0.17071002]
[1721576810268,0.72671324,67289.0,67288.0,0.17171002]
[1721576810896,0.42948824,67289.0,67288.0,0.17171002]
[1721576811099,0.71971324,67289.0,67288.0,0.17071002]
[1721576811317,1.02893824,67289.0,67288.0,0.17171002]
[1721576811740,1.02893824,67289.0,67288.0,0.17271002]
[1721576811741,1.03693824,67289.0,67288.0,0.17271002]
[1721576811959,1.02493824,67289.0,67288.0,0.17171002]
[1721576812178,0.72771324,67289.0,67288.0,0.17171002]
[1721576812388,0.43548824,67289.0,67288.0,0.17171002]
[1721576812594,0.42348824,67289.0,67288.0,0.17071002]
[1721576812784,0.42348824,67289.0,67288.0,0.17171002]
[1721576812785,1.32016324,67289.0,67288.0,0.17171002]
[1721576813254,1.43668506,67289.0,67288.0,0.17171002]
[1721576813472,1.30466874,67289.0,67288.0,0.17171002]
[1721576814094,1.3488943,67289.0,67288.0,0.17171002]
[1721576814309,1.6461193,67289.0,67288.0,0.17171002]
[1721576814556,1.60189374,67289.0,67288.0,0.17171002]
[1721576814771,2.67198831,67289.0,67288.0,0.17171002]
[1721576814983,0.248621,67285.0,67284.0,0.0152351]
[1721576815232,1.07048874,67285.0,67284.0,0.0152351]
[1721576815457,2.05341674,67285.0,67284.0,0.0152351]
[1721576815701,2.1639719,67285.0,67284.0,0.0152351]
[1721576816148,1.9781899,67285.0,67284.0,0.0152351]
[1721576816363,1.88219474,67285.0,67284.0,0.0152351]
[1721576816578,1.89019474,67285.0,67284.0,0.0162351]
[1721576816802,1.94235482,67285.0,67284.0,0.0162351]
[1721576817022,1.94235548,67285.0,67284.0,0.0162351]
[1721576817413,1.85392474,67285.0,67284.0,0.0162351]
[1721576817670,1.92023878,67285.0,67284.0,0.0162351]
[1721576817906,1.99323878,67285.0,67284.0,0.0162351]
[1721576818119,2.02934089,67285.0,67284.0,0.0162351]
[1721576818342,1.94092474,67285.0,67284.0,0.0162351]
[1721576818562,2.07541674,67285.0,67284.0,0.0162351]
[1721576818772,2.32656631,67285.0,67284.0,0.0162351]
[1721576819017,2.30456631,67285.0,67284.0,0.0172351]
[1721576819232,2.37096384,67285.0,67284.0,0.0152351]
[1721576819451,2.37096384,67285.0,67276.0,0.4692]
[1721576819452,1.671451,67277.0,67276.0,0.4692]
[1721576819669,0.495944,67273.0,67272.0,0.01778904]
[1721576819896,2.05365574,67273.0,67272.0,0.01778904]
[1721576820110,2.4393236,67273.0,67272.0,0.01778904]
[1721576820334,2.59367317,67273.0,67272.0,0.01778904]
[1721576820550,3.08896497,67273.0,67272.0,0.01778904]
[1721576820790,3.08896497,67273.0,67270.0,0.26]
[1721576820791,0.05,67271.0,67270.0,0.22954504]
[1721576821012,0.05,67271.0,67270.0,0.12235204]
[1721576821013,3.37879532,67271.0,67270.0,0.12235204]
[1721576821221,3.87003132,67271.0,67270.0,0.12235204]
[1721576821430,3.87003132,67271.0,67270.0,4e-08]
[1721576821431,8.54723732,67271.0,67270.0,4e-08]
[1721576821641,7.52898256,67271.0,67270.0,4e-08]
[1721576821857,1.87007161,67271.0,67270.0,4e-08]
[1721576822065,1.80384974,67271.0,67270.0,4e-08]
[1721576822275,1.88776847,67271.0,67270.0,4e-08]
[1721576822486,2.16064947,67271.0,67270.0,4e-08]
[1721576822708,2.09446847,67271.0,67270.0,4e-08]
[1721576822921,2.04446847,67271.0,67270.0,4e-08]
[1721576823131,2.04446847,67271.0,67259.0,0.27442465]
[1721576823132,1.526648,67262.0,67259.0,0.27442465]
[1721576823353,1.526648,67262.0,67249.0,0.27442465]
[1721576823354,2.19247174,67262.0,67249.0,0.27442465]
[1721576824429,2.20547174,67262.0,67249.0,0.27442465]
[1721576824892,2.36217174,67262.0,67239.0,0.0627]
[1721576825103,2.42617174,67262.0,67239.0,0.0627]
[1721576825345,2.58052131,67262.0,67239.0,0.0627]
[1721576826207,2.92786531,67262.0,67239.0,0.0627]
[1721576826422,1.388246,67252.0,67239.0,0.0627]
[1721576826642,2.05406974,67252.0,67239.0,0.0627]
[1721576826854,2.05406974,67252.0,67237.0,0.46304871]
[1721576826855,2.19266974,67252.0,67237.0,0.46304871]
[1721576828166,2.37736974,67252.0,67251.0,0.003]
[1721576828374,2.28281674,67252.0,67251.0,0.003]
[1721576828579,2.25481674,67252.0,67251.0,0.002]
[1721576828787,2.42466081,67252.0,67251.0,0.002]
[1721576828993,2.43866081,67252.0,67251.0,0.002]
[1721576829619,2.50026081,67252.0,67251.0,0.002]
[1721576829839,2.51426081,67252.0,67251.0,0.002]
[1721576830049,2.56426081,67252.0,67251.0,0.002]
[1721576830258,2.51426081,67252.0,67251.0,0.002]
[1721576830724,1.33873424,67252.0,67251.0,0.002]
[1721576831383,1.68612224,67252.0,67251.0,0.002]
[1721576831605,1.38873424,67252.0,67251.0,0.002]
[1721576831846,1.74917624,67252.0,67251.0,0.002]
[1721576832063,1.78617624,67252.0,67251.0,0.00067651]
[1721576832285,1.94052581,67252.0,67251.0,0.00067651]
[1721576832495,2.51921381,67252.0,67251.0,0.00067651]
[1721576832711,2.36486424,67252.0,67251.0,0.00067651]
[1721576832924,1.68826524,67252.0,67251.0,0.00067651]
[1721576833141,1.61526524,67252.0,67251.0,0.00067651]
[1721576833353,1.02734624,67252.0,67251.0,0.00067651]
[1721576833792,1.32473424,67252.0,67251.0,0.00067651]
[1721576834014,1.80447181,67252.0,67251.0,0.00067651]
[1721576834238,1.88152581,67252.0,67251.0,0.00067651]
[1721576834659,1.89552581,67252.0,67251.0,0.00067651]
[1721576835098,2.68601433,67252.0,67251.0,0.00067651]
[1721576835317,2.70901433,67252.0,67251.0,0.00067651]
[1721576835987,2.63183954,67252.0,67251.0,0.00067651]
[1721576836826,2.47748997,67252.0,67251.0,0.00067651]
[1721576837037,2.52748997,67252.0,67251.0,0.00067651]
[1721576837253,1.36195997,67252.0,67251.0,0.00067651]
[1721576837462,1.49566497,67252.0,67251.0,0.00067651]
[1721576837885,1.56866497,67252.0,67251.0,0.00067651]
[1721576838172,1.72301454,67252.0,67251.0,0.00067651]
[1721576838594,2.07166497,67252.0,67251.0,0.00067651]
[1721576838806,2.36905297,67252.0,67251.0,0.00160051]
[1721576841152,1.87536497,67252.0,67251.0,0.00160051]
[1721576841367,1.77145897,67252.0,67251.0,0.00160051]
[1721576841585,1.78588059,67252.0,67251.0,0.00160051]
[1721576841800,2.43065659,67252.0,67251.0,0.00160051]
[1721576842014,2.43065659,67252.0,67241.0,0.002]
[1721576842015,1.041015,67242.0,67241.0,0.002]
[1721576842235,1.68383874,67242.0,67241.0,0.002]
[1721576842445,1.60312074,67242.0,67241.0,0.002]
[1721576842652,1.041106,67236.0,67235.0,0.1409]
[1721576842869,1.29548774,67236.0,67235.0,0.1409]
[1721576843350,0.743692,67232.0,67231.0,0.002]
[1721576843570,0.99807374,67232.0,67231.0,0.002]
[1721576843783,1.29555074,67232.0,67231.0,0.002]
[1721576843995,1.31104524,67232.0,67231.0,0.002]
[1721576844446,1.38404524,67232.0,67231.0,0.002]
[1721576844875,1.39604524,67232.0,67231.0,0.002]
[1721576845091,1.41004524,67232.0,67231.0,0.002]
[1721576845538,1.39604524,67232.0,67231.0,0.002]
[1721576845784,1.75285624,67232.0,67231.0,0.002]
[1721576845994,1.86994602,67232.0,67231.0,0.002]
[1721576846235,1.85794602,67232.0,67231.0,0.002]
[1721576846442,1.88594602,67232.0,67231.0,0.002]
[1721576846654,1.48797624,67232.0,67231.0,0.002]
[1721576846860,1.33904524,67232.0,67231.0,0.002]
[1721576847079,1.35304524,67232.0,67231.0,0.002]
[1721576847706,1.33904524,67232.0,67231.0,0.002]
[1721576847888,1.32504524,67232.0,67231.0,0.002]
[1721576848119,1.33904524,67232.0,67231.0,0.002]
[1721576848770,1.32504524,67232.0,67231.0,0.002]
[1721576848983,1.33904524,67232.0,67231.0,0.002]
[1721576849407,1.35304524,67232.0,67231.0,0.002]
[1721576849625,1.61526524,67232.0,67231.0,0.002]
[1721576849837,1.76961481,67232.0,67231.0,0.002]
[1721576851173,2.19009181,67232.0,67231.0,0.002]
[1721576851388,2.24009181,67232.0,67231.0,0.002]
[1721576851598,2.53619181,67232.0,67231.0,0.002]
[1721576851809,2.83366881,67232.0,67231.0,0.002]
[1721576852679,2.80566881,67232.0,67231.0,0.002]
[1721576853084,1.438727,67228.0,67221.0,0.002]
[1721576853335,2.10455074,67228.0,67221.0,0.002]
[1721576854183,2.40204574,67228.0,67221.0,0.002]
[1721576854425,2.45204574,67228.0,67221.0,0.002]
[1721576854663,2.60874574,67228.0,67221.0,0.002]
[1721576854877,0.19876,67222.0,67221.0,0.002]
[1721576855096,1.13910474,67222.0,67221.0,0.002]
[1721576855310,2.03166774,67222.0,67221.0,0.002]
[1721576856220,2.06866774,67222.0,67221.0,0.002]
[1721576856429,2.08266774,67222.0,67221.0,0.002]
[1721576856636,2.17379891,67222.0,67221.0,0.002]
[1721576857046,2.23936774,67222.0,67221.0,0.002]
[1721576857282,2.00966774,67222.0,67221.0,0.002]
[1721576857496,1.91875774,67222.0,67221.0,0.002]
[1721576858143,1.91875774,67222.0,67221.0,0.1422]
[1721576858144,1.58061238,67222.0,67221.0,0.1422]
[1721576858355,1.33308038,67222.0,67221.0,0.1422]
[1721576859051,1.76890942,67222.0,67221.0,0.1422]
[1721576859276,2.20735142,67222.0,67221.0,0.002]
[1721576859496,2.24559592,67222.0,67221.0,0.002]
[1721576861653,2.10728788,67222.0,67221.0,0.002]
[1721576862499,2.10728788,67222.0,67221.0,0.1486]
[1721576862500,1.34832488,67222.0,67221.0,0.1486]
[1721576864065,1.34832488,67222.0,67221.0,0.002]
[1721576864283,1.67037788,67222.0,67221.0,0.002]
[1721576864501,1.82472745,67222.0,67221.0,0.002]
[1721576865581,2.12884745,67222.0,67221.0,0.002]
[1721576866439,3.57706845,67222.0,67221.0,0.002]
[1721576868793,3.62706845,67222.0,67221.0,0.002]
[1721576869029,0.683476,67215.0,67214.0,0.09095742]
[1721576869247,0.683476,67215.0,67204.0,0.009207]
[1721576869248,0.79399,67205.0,67204.0,0.009207]
[1721576869481,2.22960174,67205.0,67204.0,0.009207]
[1721576869700,2.22960174,67205.0,67173.0,0.05216551]
[1721576869701,0.744257,67181.0,67180.0,0.0617]
[1721576869953,1.19634174,67181.0,67180.0,0.0617]
[1721576870167,1.59404474,67181.0,67180.0,0.0617]
[1721576870404,1.59404474,67181.0,67167.0,0.009218]
[1721576870405,0.7444,67168.0,67167.0,0.085418]
[1721576870625,1.19654174,67168.0,67167.0,0.085418]
[1721576870841,1.29654174,67168.0,67167.0,0.085418]
[1721576871280,1.29654174,67168.0,67167.0,0.009218]
[1721576871281,1.47619591,67168.0,67167.0,0.009218]
[1721576871501,2.38991591,67168.0,67167.0,0.009218]
[1721576871714,2.37970867,67168.0,67167.0,0.009218]
[1721576871933,2.24741084,67168.0,67167.0,0.009218]
[1721576872151,2.51233984,67168.0,67167.0,0.009218]
[1721576872569,2.51233984,67168.0,67153.0,0.009218]
[1721576872570,0.05,67164.0,67153.0,0.009218]
[1721576872780,1.19660474,67164.0,67153.0,0.009218]
[1721576873010,1.29660474,67164.0,67153.0,0.009218]
[1721576873221,1.29660474,67164.0,67163.0,0.070918]
[1721576873721,0.25438174,67164.0,67163.0,0.147118]
[1721576873946,0.25438174,67164.0,67163.0,0.22429279]
[1721576873947,0.15438174,67164.0,67163.0,0.22429279]
[1721576874595,0.16987624,67164.0,67163.0,0.22429279]
[1721576874814,0.16987624,67164.0,67163.0,0.37318379]
[1721576875022,0.014,67168.0,67163.0,0.08639279]
[1721576875241,0.297701,67182.0,67163.0,0.08639279]
[1721576875242,0.297701,67182.0,67164.0,0.1459]
[1721576875455,0.297721,67177.0,67164.0,0.1319]
[1721576875667,0.148867,67174.0,67164.0,0.1319]
[1721576875881,0.29234838,67173.0,67164.0,0.1319]
[1721576876090,0.14347938,67173.0,67170.0,0.07717479]
[1721576877295,0.1,67172.0,67171.0,0.0798]
[1721576877966,0.148862,67176.0,67171.0,0.0798]
[1721576878191,0.002,67173.0,67171.0,0.0798]
[1721576878410,0.14514692,67173.0,67172.0,0.0661]
[1721576878631,0.24314692,67173.0,67172.0,0.0661]
[1721576879887,0.24514692,67173.0,67172.0,0.0661]
[1721576880098,0.102,67173.0,67172.0,0.0661]
[1721576880316,0.002,67173.0,67172.0,0.0661]
[1721576880529,0.44282951,67173.0,67172.0,0.0661]
[1721576880735,0.24509151,67173.0,67172.0,0.0661]
[1721576881801,0.39396051,67173.0,67172.0,0.0661]
[1721576882024,0.39396051,67173.0,67172.0,0.001]
[1721576882025,1.38611576,67173.0,67172.0,0.001]
[1721576882253,1.39217451,67173.0,67172.0,0.001]
[1721576882465,1.68991251,67173.0,67172.0,0.001]
[1721576882904,1.68791251,67173.0,67172.0,0.001]
[1721576883113,1.84226208,67173.0,67172.0,0.001]
[1721576883315,1.042223,67164.0,67163.0,0.009218]
[1721576883523,1.2858132,67164.0,67163.0,0.009218]
[1721576884212,1.5835912,67164.0,67163.0,0.009218]
[1721576884448,1.78335799,67164.0,67163.0,0.009218]
[1721576884652,2.31912799,67164.0,67163.0,0.009218]
[1721576885286,2.31912799,67164.0,67163.0,0.014218]
[1721576885501,2.66690599,67164.0,67163.0,0.014218]
[1721576885703,2.66690599,67164.0,67163.0,0.009218]
[1721576885905,2.66690599,67164.0,67163.0,0.010218]
[1721576885906,2.37712799,67164.0,67163.0,0.010218]
[1721576886323,2.40949999,67164.0,67163.0,0.010218]
[1721576886548,2.47349999,67164.0,67163.0,0.011218]
[1721576886756,1.7285912,67164.0,67163.0,0.011218]
[1721576886964,1.4228132,67164.0,67163.0,0.009218]
[1721576887169,1.7612552,67164.0,67163.0,0.009218]
[1721576887371,2.2004332,67164.0,67163.0,0.009218]
[1721576887574,2.35478277,67164.0,67163.0,0.009218]
[1721576887781,2.57548277,67164.0,67163.0,0.009218]
[1721576887992,2.62548277,67164.0,67163.0,0.009218]
[1721576888201,2.62548277,67164.0,67163.0,1e-06]
[1721576888406,2.90926077,67164.0,67163.0,1e-06]
[1721576888831,2.92326077,67164.0,67163.0,1e-06]
[1721576889775,2.92326077,67164.0,67141.0,0.26839655]
[1721576889776,2.92326077,67164.0,67149.0,0.0137351]
[1721576889777,0.2567,67150.0,67149.0,0.0137351]
[1721576889997,0.92612493,67150.0,67149.0,0.0137351]
[1721576890215,2.01024693,67150.0,67149.0,0.0137351]
[1721576890433,0.95139,67142.0,67141.0,0.19122176]
[1721576890681,2.18166864,67142.0,67141.0,0.01339358]
[1721576890886,2.18166864,67142.0,67136.0,0.2173]
[1721576890887,0.24608464,67142.0,67136.0,0.2173]
[1721576891093,0.148949,67137.0,67136.0,0.2173]
[1721576891306,0.1470829,67137.0,67136.0,0.2173]
[1721576891726,0.2960319,67137.0,67136.0,0.2173]
[1721576891947,0.5939299,67137.0,67136.0,0.2173]
[1721576892175,0.114,67142.0,67136.0,0.2173]
[1721576892371,0.14680557,67141.0,67137.0,0.1452]
[1721576892578,0.297851,67148.0,67138.0,0.148946]
[1721576892579,0.148925,67148.0,67138.0,0.148946]
[1721576892789,0.148925,67148.0,67137.0,0.1452]
[1721576892790,0.1,67141.0,67137.0,0.1452]
[1721576893001,0.446839,67138.0,67137.0,0.1452]
[1721576893223,0.1,67141.0,67137.0,0.1452]
[1721576893427,0.148946,67138.0,67137.0,0.1452]
[1721576893633,0.446839,67138.0,67137.0,0.1452]
[1721576893978,0.148946,67138.0,67137.0,0.1452]
[1721576894190,0.14697197,67138.0,67137.0,0.1452]
[1721576894391,0.1,67141.0,67137.0,0.1452]
[1721576894588,0.1,67141.0,67140.0,0.29447479]
[1721576894589,0.014,67141.0,67140.0,0.29447479]
[1721576894786,0.014,67141.0,67140.0,0.41819805]
[1721576894987,0.148923,67149.0,67140.0,0.41319805]
[1721576895236,0.0155676,67150.0,67147.0,0.07717479]
[1721576895237,0.39511955,67148.0,67147.0,0.07717479]
[1721576895431,0.39511955,67148.0,67140.0,0.28947479]
[1721576895432,0.297856,67147.0,67140.0,0.28947479]
[1721576895665,0.297863,67145.0,67141.0,0.12372754]
[1721576895843,0.297863,67145.0,67140.0,0.2173]
[1721576895844,0.14894,67141.0,67140.0,0.2173]
[1721576896019,0.1466392,67141.0,67140.0,0.2173]
[1721576896218,0.2955792,67141.0,67140.0,0.2173]
[1721576896419,0.2955792,67141.0,67140.0,0.34103352]
[1721576896625,0.2955792,67141.0,67140.0,0.2173]
[1721576896833,0.1536392,67141.0,67140.0,0.2173]
[1721576897042,0.1536392,67141.0,67140.0,0.34103419]
[1721576897201,0.1536392,67141.0,67140.0,0.48997619]
[1721576897202,0.007,67141.0,67140.0,0.48997619]
[1721576897404,0.01,67141.0,67140.0,0.48997619]
[1721576897609,0.1155676,67150.0,67140.0,0.34103419]
[1721576897809,0.1155676,67150.0,67148.0,0.06717479]
[1721576897810,0.29506209,67149.0,67148.0,0.06717479]
[1721576898006,0.29506209,67149.0,67148.0,0.18890898]
[1721576898007,0.39506209,67149.0,67148.0,0.18890898]
[1721576898457,0.69290709,67149.0,67148.0,0.18890898]
[1721576898658,0.69290709,67149.0,67148.0,0.12373419]
[1721576899302,0.39506209,67149.0,67148.0,0.12373419]
[1721576899521,0.39506209,67149.0,67148.0,0.12473419]
[1721576899522,0.40706209,67149.0,67148.0,0.12473419]
[1721576899659,0.25814009,67149.0,67148.0,0.26453419]
[1721576899874,0.022,67149.0,67148.0,0.63075819]
[1721576900295,0.022,67149.0,67148.0,0.48183419]
[1721576900873,0.16775196,67149.0,67148.0,0.48183419]
[1721576901012,0.30667396,67149.0,67148.0,0.48183419]
[1721576901216,0.30667396,67149.0,67148.0,0.26453419]
[1721576901416,0.99036396,67149.0,67148.0,0.26353419]
[1721576901650,0.69251896,67149.0,67148.0,0.1398]
[1721576901859,0.69351896,67149.0,67148.0,0.1418]
[1721576902069,0.99136396,67149.0,67148.0,0.1418]
[1721576902274,0.99136396,67149.0,67148.0,0.002]
[1721576902476,0.446806,67143.0,67142.0,0.0639]
[1721576902678,0.446806,67143.0,67142.0,0.18763096]
[1721576902679,0.59322337,67143.0,67142.0,0.18763096]
[1721576902897,0.14641737,67143.0,67142.0,0.18763096]